[Event "December 12 Early 2023"]
[Site "https://www.chess.com"]
[Date "2023.12.12"]
[Round "9"]
[White "Adla, Diego"]
[Black "Riehle, Marco"]
[Result "1-0"]
[Board "34"]
[TimeControl "180+1"]
[WhiteFideId "100072"]
[BlackFideId "12904392"]
[WhiteElo "2671"]
[BlackElo "2868"]
[WhiteTeam "ARG"]
[BlackTeam "GER"]
[WhiteClock "0:00:11"]
[BlackClock "0:00:03"]

1. c4 {[%clk 0:03:00]}  e6 {[%clk 0:01:24]} 2. g3 {[%clk 0:03:00]}  d5 {[%clk 0:01:23]} 3. Bg2 {[%clk 0:03:00]}  Nf6 {[%clk 0:01:23]} 4. Nf3 {[%clk 0:02:59]}  c5 {[%clk 0:01:23]} 5. cxd5 {[%clk 0:02:58]}  Nxd5 {[%clk 0:01:23]} 6. O-O {[%clk 0:02:57]}  Nc6 {[%clk 0:01:22]} 7. b3 {[%clk 0:02:43]}  Be7 {[%clk 0:01:21]} 8. Bb2 {[%clk 0:02:43]}  O-O {[%clk 0:01:22]} 9. d4 {[%clk 0:02:41]}  b6 {[%clk 0:01:20]} 10. dxc5 {[%clk 0:02:37]}  Bxc5 {[%clk 0:01:18]} 11. Nc3 {[%clk 0:02:31]}  Nxc3 {[%clk 0:01:18]} 12. Bxc3 {[%clk 0:02:32]}  Bb7 {[%clk 0:01:18]} 13. Qc1 {[%clk 0:02:28]}  Rc8 {[%clk 0:01:16]} 14. Qb2 {[%clk 0:02:27]}  f6 {[%clk 0:01:14]} 15. a3 {[%clk 0:02:20]}  Qe7 {[%clk 0:01:13]} 16. b4 {[%clk 0:02:14]}  Bd6 {[%clk 0:01:13]} 17. Rfd1 {[%clk 0:02:15]}  Bb8 {[%clk 0:01:12]} 18. b5 {[%clk 0:02:08]}  Na5 {[%clk 0:01:12]} 19. Bb4 {[%clk 0:02:08]}  Qf7 {[%clk 0:01:11]} 20. Bxf8 {[%clk 0:02:07]}  Rxf8 {[%clk 0:01:12]} 21. Rac1 {[%clk 0:02:03]}  h5 {[%clk 0:01:06]} 22. Qb4 {[%clk 0:02:01]}  e5 {[%clk 0:01:00]} 23. Ne1 {[%clk 0:01:58]}  Bxg2 {[%clk 0:00:59]} 24. Nxg2 {[%clk 0:01:59]}  Re8 {[%clk 0:00:56]} 25. Ne3 {[%clk 0:01:59]}  f5 {[%clk 0:00:55]} 26. Nd5 {[%clk 0:01:55]}  e4 {[%clk 0:00:52]} 27. e3 {[%clk 0:01:53]}  h4 {[%clk 0:00:52]} 28. Nf4 {[%clk 0:01:52]}  hxg3 {[%clk 0:00:46]} 29. hxg3 {[%clk 0:01:52]}  Bxf4 {[%clk 0:00:47]} 30. exf4 {[%clk 0:01:50]}  e3 {[%clk 0:00:47]} 31. Re1 {[%clk 0:01:46]}  exf2+ {[%clk 0:00:46]} 32. Kxf2 {[%clk 0:01:45]}  Rd8 {[%clk 0:00:40]} 33. Rcd1 {[%clk 0:01:43]}  Rc8 {[%clk 0:00:39]} 34. Qe7 {[%clk 0:01:32]}  Rc2+ {[%clk 0:00:38]} 35. Kg1 {[%clk 0:01:32]}  Qh5 {[%clk 0:00:35]} 36. Qe8+ {[%clk 0:01:20]}  Qxe8 {[%clk 0:00:35]} 37. Rxe8+ {[%clk 0:01:21]}  Kh7 {[%clk 0:00:36]} 38. Re7 {[%clk 0:01:20]}  Nc4 {[%clk 0:00:31]} 39. Rc7 {[%clk 0:01:15]}  Nxa3 {[%clk 0:00:26]} 40. Rxc2 {[%clk 0:01:10]}  Nxc2 {[%clk 0:00:26]} 41. Rd5 {[%clk 0:01:08]}  Kg6 {[%clk 0:00:23]} 42. Kf2 {[%clk 0:01:08]}  Kf6 {[%clk 0:00:19]} 43. Ke2 {[%clk 0:01:02]}  Ke6 {[%clk 0:00:19]} 44. Re5+ {[%clk 0:01:02]}  Kf6 {[%clk 0:00:20]} 45. Kd3 {[%clk 0:01:01]}  Nb4+ {[%clk 0:00:19]} 46. Kc4 {[%clk 0:01:01]}  Na2 {[%clk 0:00:19]} 47. Kd5 {[%clk 0:01:00]}  Nb4+ {[%clk 0:00:17]} 48. Kd6 {[%clk 0:01:00]}  Nd3 {[%clk 0:00:17]} 49. Rd5 {[%clk 0:00:58]}  Nc5 {[%clk 0:00:18]} 50. Kc6 {[%clk 0:00:51]}  Ke6 {[%clk 0:00:11]} 51. Re5+ {[%clk 0:00:49]}  Kf6 {[%clk 0:00:11]} 52. Re3 {[%clk 0:00:39]}  g5 {[%clk 0:00:10]} 53. fxg5+ {[%clk 0:00:35]}  Kxg5 {[%clk 0:00:11]} 54. Kc7 {[%clk 0:00:34]}  f4 {[%clk 0:00:10]} 55. gxf4+ {[%clk 0:00:34]}  Kxf4 {[%clk 0:00:11]} 56. Re8 {[%clk 0:00:31]}  Kf5 {[%clk 0:00:10]} 57. Ra8 {[%clk 0:00:21]}  Ne6+ {[%clk 0:00:10]} 58. Kb7 {[%clk 0:00:20]}  Nc5+ {[%clk 0:00:09]} 59. Kxa7 {[%clk 0:00:20]}  Na4 {[%clk 0:00:09]} 60. Kb7 {[%clk 0:00:18]}  Nc3 {[%clk 0:00:09]} 61. Kxb6 {[%clk 0:00:18]}  Ke6 {[%clk 0:00:10]} 62. Rc8 {[%clk 0:00:17]}  Nd5+ {[%clk 0:00:10]} 63. Kb7 {[%clk 0:00:17]}  Kd7 {[%clk 0:00:10]} 64. Rc1 {[%clk 0:00:17]}  Nb4 {[%clk 0:00:07]} 65. b6 {[%clk 0:00:15]}  Kd6 {[%clk 0:00:08]} 66. Ka8 {[%clk 0:00:13]}  Na2 {[%clk 0:00:07]} 67. Rh1 {[%clk 0:00:11]}  Nc3 {[%clk 0:00:05]} 68. b7 {[%clk 0:00:11]}  Ne4 {[%clk 0:00:04]} 69. b8=Q+ {[%clk 0:00:12]}  Ke6 {[%clk 0:00:03]} 70. Re1 {[%clk 0:00:11]}  Kd5 {[%clk 0:00:04]} 71. Qb7+ {[%clk 0:00:10]}  Kc5 {[%clk 0:00:03]} 72. Qxe4 {[%clk 0:00:11]} 1-0

[Event "December 12 Early 2023"]
[Site "https://www.chess.com"]
[Date "2023.12.12"]
[Round "9"]
[White "Klukin, Kirill"]
[Black "Renjith, Sravan"]
[Result "1/2-1/2"]
[Board "38"]
[TimeControl "180+1"]
[WhiteFideId "24199273"]
[BlackFideId "4306783"]
[WhiteElo "2795"]
[BlackElo "2637"]
[WhiteTeam "RUS"]
[BlackTeam "NZL"]
[WhiteClock "0:00:06"]
[BlackClock "0:00:11"]

1. d4 {[%clk 0:03:00]}  d5 {[%clk 0:02:54]} 2. c4 {[%clk 0:03:00]}  e6 {[%clk 0:02:54]} 3. Nc3 {[%clk 0:03:01]}  c5 {[%clk 0:02:55]} 4. cxd5 {[%clk 0:03:00]}  exd5 {[%clk 0:02:56]} 5. Nf3 {[%clk 0:03:00]}  Nc6 {[%clk 0:02:56]} 6. e3 {[%clk 0:02:54]}  Nf6 {[%clk 0:02:56]} 7. Bb5 {[%clk 0:02:53]}  Be7 {[%clk 0:02:55]} 8. dxc5 {[%clk 0:02:52]}  Bxc5 {[%clk 0:02:55]} 9. O-O {[%clk 0:02:53]}  O-O {[%clk 0:02:54]} 10. b3 {[%clk 0:02:50]}  a6 {[%clk 0:02:50]} 11. Bxc6 {[%clk 0:02:48]}  bxc6 {[%clk 0:02:51]} 12. h3 {[%clk 0:02:46]}  Bd6 {[%clk 0:02:49]} 13. Bb2 {[%clk 0:02:45]}  Bd7 {[%clk 0:02:42]} 14. Rc1 {[%clk 0:02:44]}  Qe7 {[%clk 0:02:42]} 15. Na4 {[%clk 0:02:38]}  c5 {[%clk 0:02:38]} 16. Nb6 {[%clk 0:02:35]}  Rad8 {[%clk 0:02:29]} 17. Bxf6 {[%clk 0:02:21]}  Qxf6 {[%clk 0:02:29]} 18. Nxd5 {[%clk 0:02:21]}  Qg6 {[%clk 0:02:29]} 19. Ne5 {[%clk 0:02:06]}  Qe6 {[%clk 0:02:06]} 20. Nxd7 {[%clk 0:01:55]}  Rxd7 {[%clk 0:02:06]} 21. Qf3 {[%clk 0:01:38]}  Bh2+ {[%clk 0:01:48]} 22. Kxh2 {[%clk 0:01:38]}  Rxd5 {[%clk 0:01:49]} 23. Rfd1 {[%clk 0:01:30]}  Rfd8 {[%clk 0:01:47]} 24. Rxd5 {[%clk 0:01:30]}  Rxd5 {[%clk 0:01:48]} 25. b4 {[%clk 0:00:44]}  h6 {[%clk 0:01:10]} 26. bxc5 {[%clk 0:00:38]}  Qe5+ {[%clk 0:01:09]} 27. g3 {[%clk 0:00:34]}  Rxc5 {[%clk 0:01:08]} 28. Rxc5 {[%clk 0:00:34]}  Qxc5 {[%clk 0:01:09]} 29. Qa8+ {[%clk 0:00:34]}  Kh7 {[%clk 0:01:10]} 30. Qxa6 {[%clk 0:00:33]}  Qc2 {[%clk 0:01:06]} 31. Kg1 {[%clk 0:00:21]}  Qd1+ {[%clk 0:01:06]} 32. Kg2 {[%clk 0:00:20]}  Qd5+ {[%clk 0:01:01]} 33. e4 {[%clk 0:00:14]}  Qxe4+ {[%clk 0:01:00]} 34. Kh2 {[%clk 0:00:15]}  Qc2 {[%clk 0:00:57]} 35. Qa7 {[%clk 0:00:15]}  f5 {[%clk 0:00:51]} 36. a4 {[%clk 0:00:12]}  f4 {[%clk 0:00:51]} 37. gxf4 {[%clk 0:00:13]}  Qe4 {[%clk 0:00:47]} 38. a5 {[%clk 0:00:09]}  Qxf4+ {[%clk 0:00:46]} 39. Kg1 {[%clk 0:00:10]}  Qc1+ {[%clk 0:00:42]} 40. Kg2 {[%clk 0:00:10]}  Qg5+ {[%clk 0:00:42]} 41. Kf3 {[%clk 0:00:11]}  Qf5+ {[%clk 0:00:42]} 42. Ke2 {[%clk 0:00:11]}  Qc2+ {[%clk 0:00:41]} 43. Ke3 {[%clk 0:00:11]}  Qc3+ {[%clk 0:00:39]} 44. Ke4 {[%clk 0:00:11]}  Qxh3 {[%clk 0:00:38]} 45. Qc5 {[%clk 0:00:09]}  Qg2+ {[%clk 0:00:37]} 46. Ke5 {[%clk 0:00:08]}  Qg5+ {[%clk 0:00:37]} 47. Kd6 {[%clk 0:00:09]}  Qd8+ {[%clk 0:00:33]} 48. Kc6 {[%clk 0:00:09]}  Qe8+ {[%clk 0:00:32]} 49. Kb7 {[%clk 0:00:07]}  Qe4+ {[%clk 0:00:30]} 50. Kc7 {[%clk 0:00:06]}  Qf4+ {[%clk 0:00:30]} 51. Kb6 {[%clk 0:00:05]}  Qf6+ {[%clk 0:00:28]} 52. Ka7 {[%clk 0:00:04]}  Qf7+ {[%clk 0:00:26]} 53. Ka6 {[%clk 0:00:05]}  Qe6+ {[%clk 0:00:23]} 54. Qb6 {[%clk 0:00:06]}  Qe2+ {[%clk 0:00:23]} 55. Ka7 {[%clk 0:00:06]}  Qe7+ {[%clk 0:00:23]} 56. Kb8 {[%clk 0:00:06]}  Qe8+ {[%clk 0:00:22]} 57. Kb7 {[%clk 0:00:07]}  Qe7+ {[%clk 0:00:19]} 58. Qc7 {[%clk 0:00:08]}  Qe4+ {[%clk 0:00:19]} 59. Qc6 {[%clk 0:00:07]}  Qe7+ {[%clk 0:00:17]} 60. Ka6 {[%clk 0:00:05]}  Qe2+ {[%clk 0:00:17]} 61. Ka7 {[%clk 0:00:05]}  Qxf2+ {[%clk 0:00:17]} 62. Qb6 {[%clk 0:00:04]}  Qf7+ {[%clk 0:00:17]} 63. Qb7 {[%clk 0:00:05]}  Qf2+ {[%clk 0:00:16]} 64. Qb6 {[%clk 0:00:05]}  Qf7+ {[%clk 0:00:15]} 65. Qb7 {[%clk 0:00:06]}  Qf2+ {[%clk 0:00:11]} 66. Qb6 {[%clk 0:00:06]} 1/2-1/2

[Event "December 12 Early 2023"]
[Site "https://www.chess.com"]
[Date "2023.12.12"]
[Round "9"]
[White "Ovetchkin, Roman"]
[Black "Mikhailovsky, Vladimir"]
[Result "0-1"]
[Board "39"]
[TimeControl "180+1"]
[WhiteFideId "4119991"]
[BlackFideId "34105414"]
[WhiteElo "2634"]
[BlackElo "2791"]
[WhiteTeam "RUS"]
[BlackTeam "RUS"]
[WhiteClock "0:00:05"]
[BlackClock "0:01:10"]

1. d4 {[%clk 0:03:00]}  d6 {[%clk 0:03:00]} 2. e4 {[%clk 0:03:00]}  Nf6 {[%clk 0:03:00]} 3. Nc3 {[%clk 0:03:00]}  Nbd7 {[%clk 0:03:00]} 4. f4 {[%clk 0:02:56]}  e5 {[%clk 0:03:00]} 5. Nf3 {[%clk 0:02:56]}  exd4 {[%clk 0:02:57]} 6. Qxd4 {[%clk 0:02:56]}  c6 {[%clk 0:02:58]} 7. Be3 {[%clk 0:02:26]}  d5 {[%clk 0:02:55]} 8. e5 {[%clk 0:02:24]}  Bc5 {[%clk 0:02:55]} 9. Qd2 {[%clk 0:02:19]}  Bxe3 {[%clk 0:02:29]} 10. Qxe3 {[%clk 0:02:19]}  Ng4 {[%clk 0:02:30]} 11. Qd2 {[%clk 0:02:15]}  Qb6 {[%clk 0:02:28]} 12. O-O-O {[%clk 0:02:00]}  Nc5 {[%clk 0:02:12]} 13. Nd4 {[%clk 0:01:51]}  h5 {[%clk 0:01:44]} 14. h3 {[%clk 0:01:30]}  Nh6 {[%clk 0:01:44]} 15. Be2 {[%clk 0:01:04]}  h4 {[%clk 0:01:44]} 16. Kb1 {[%clk 0:01:04]}  Nf5 {[%clk 0:01:44]} 17. Bg4 {[%clk 0:01:03]}  Nxd4 {[%clk 0:01:40]} 18. Qxd4 {[%clk 0:01:03]}  Bxg4 {[%clk 0:01:40]} 19. hxg4 {[%clk 0:01:02]}  O-O-O {[%clk 0:01:41]} 20. f5 {[%clk 0:01:00]}  Rde8 {[%clk 0:01:38]} 21. a3 {[%clk 0:00:48]}  Nd7 {[%clk 0:01:38]} 22. Qf4 {[%clk 0:00:40]}  Rxe5 {[%clk 0:01:34]} 23. g5 {[%clk 0:00:37]}  Qe3 {[%clk 0:01:22]} 24. Rxh4 {[%clk 0:00:29]}  Rxh4 {[%clk 0:01:22]} 25. Qxh4 {[%clk 0:00:29]}  Rxf5 {[%clk 0:01:23]} 26. Qh8+ {[%clk 0:00:28]}  Kc7 {[%clk 0:01:22]} 27. Qxg7 {[%clk 0:00:26]}  Qxg5 {[%clk 0:01:22]} 28. Qh7 {[%clk 0:00:24]}  Rf2 {[%clk 0:01:18]} 29. Re1 {[%clk 0:00:16]}  Qxg2 {[%clk 0:01:10]} 30. Re7 {[%clk 0:00:05]}  Qf1+ {[%clk 0:01:10]} 0-1

[Event "December 12 Early 2023"]
[Site "https://www.chess.com"]
[Date "2023.12.12"]
[Round "9"]
[White "Skatchkov, Valery"]
[Black "Wagh Suyog"]
[Result "1/2-1/2"]
[Board "40"]
[TimeControl "180+1"]
[WhiteFideId "24195812"]
[BlackFideId "25071688"]
[WhiteElo "2631"]
[BlackElo "2790"]
[WhiteTeam "RUS"]
[BlackTeam "IND"]
[WhiteClock "0:00:19"]
[BlackClock "0:00:03"]

1. d4 {[%clk 0:03:00]}  Nf6 {[%clk 0:02:59]} 2. c4 {[%clk 0:02:58]}  e6 {[%clk 0:03:00]} 3. Nf3 {[%clk 0:02:58]}  d5 {[%clk 0:03:00]} 4. g3 {[%clk 0:02:58]}  Bb4+ {[%clk 0:02:59]} 5. Nbd2 {[%clk 0:02:58]}  O-O {[%clk 0:02:56]} 6. Bg2 {[%clk 0:02:58]}  b6 {[%clk 0:02:49]} 7. O-O {[%clk 0:02:58]}  Bb7 {[%clk 0:02:49]} 8. Ne5 {[%clk 0:02:58]}  Bd6 {[%clk 0:02:45]} 9. cxd5 {[%clk 0:02:59]}  exd5 {[%clk 0:02:45]} 10. Ndc4 {[%clk 0:02:59]}  Be7 {[%clk 0:02:38]} 11. Ne3 {[%clk 0:02:58]}  Re8 {[%clk 0:02:38]} 12. Nf5 {[%clk 0:02:52]}  Bf8 {[%clk 0:02:38]} 13. Bg5 {[%clk 0:02:52]}  h6 {[%clk 0:02:32]} 14. Bf4 {[%clk 0:02:38]}  Nbd7 {[%clk 0:02:27]} 15. Rc1 {[%clk 0:02:32]}  c5 {[%clk 0:02:17]} 16. Nc4 {[%clk 0:01:59]}  Bc6 {[%clk 0:02:01]} 17. Nce3 {[%clk 0:01:39]}  Re6 {[%clk 0:01:40]} 18. dxc5 {[%clk 0:01:37]}  Nxc5 {[%clk 0:01:36]} 19. Nd4 {[%clk 0:01:37]}  Ba4 {[%clk 0:00:53]} 20. b3 {[%clk 0:01:32]}  Bd7 {[%clk 0:00:53]} 21. Nxe6 {[%clk 0:01:32]}  fxe6 {[%clk 0:00:53]} 22. Be5 {[%clk 0:01:29]}  Nfe4 {[%clk 0:00:53]} 23. b4 {[%clk 0:01:26]}  Na4 {[%clk 0:00:46]} 24. Bxe4 {[%clk 0:01:26]}  dxe4 {[%clk 0:00:47]} 25. Qd4 {[%clk 0:01:20]}  Bb5 {[%clk 0:00:47]} 26. Qxe4 {[%clk 0:01:19]}  Bxe2 {[%clk 0:00:47]} 27. Bc7 {[%clk 0:01:10]}  Qe8 {[%clk 0:00:45]} 28. Rfe1 {[%clk 0:01:10]}  Bh5 {[%clk 0:00:43]} 29. Nd5 {[%clk 0:00:58]}  Bg6 {[%clk 0:00:30]} 30. Qg4 {[%clk 0:00:50]}  Qf7 {[%clk 0:00:04]} 31. Qxe6 {[%clk 0:00:50]}  Qxe6 {[%clk 0:00:04]} 32. Rxe6 {[%clk 0:00:51]}  Bf7 {[%clk 0:00:04]} 33. Re5 {[%clk 0:00:52]}  Bxd5 {[%clk 0:00:04]} 34. Rxd5 {[%clk 0:00:52]}  Bxb4 {[%clk 0:00:05]} 35. Rd4 {[%clk 0:00:48]}  Ba3 {[%clk 0:00:05]} 36. Rc6 {[%clk 0:00:39]}  Nc5 {[%clk 0:00:05]} 37. Rg6 {[%clk 0:00:35]}  Bb2 {[%clk 0:00:05]} 38. Rd2 {[%clk 0:00:25]}  Bc3 {[%clk 0:00:05]} 39. Rc2 {[%clk 0:00:25]}  Bf6 {[%clk 0:00:06]} 40. Rg4 {[%clk 0:00:25]}  Re8 {[%clk 0:00:06]} 41. Kf1 {[%clk 0:00:24]}  Kf7 {[%clk 0:00:05]} 42. Bd6 {[%clk 0:00:24]}  Ne4 {[%clk 0:00:05]} 43. Rc7+ {[%clk 0:00:21]}  Kg8 {[%clk 0:00:05]} 44. Bb4 {[%clk 0:00:17]}  a5 {[%clk 0:00:04]} 45. Be1 {[%clk 0:00:18]}  Nc5 {[%clk 0:00:04]} 46. Bxa5 {[%clk 0:00:17]}  Ne6 {[%clk 0:00:03]} 47. Bxb6 {[%clk 0:00:17]}  Nxc7 {[%clk 0:00:02]} 48. Bxc7 {[%clk 0:00:18]}  Rc8 {[%clk 0:00:02]} 49. Rc4 {[%clk 0:00:17]}  Be5 {[%clk 0:00:02]} 50. Rc5 {[%clk 0:00:16]}  Bxc7 {[%clk 0:00:01]} 51. a4 {[%clk 0:00:16]}  Kf7 {[%clk 0:00:02]} 52. a5 {[%clk 0:00:17]}  Ke6 {[%clk 0:00:02]} 53. a6 {[%clk 0:00:17]}  Kd6 {[%clk 0:00:03]} 54. Rc4 {[%clk 0:00:16]}  Ra8 {[%clk 0:00:04]} 55. Rg4 {[%clk 0:00:17]}  g5 {[%clk 0:00:03]} 56. h4 {[%clk 0:00:16]}  Bd8 {[%clk 0:00:03]} 57. hxg5 {[%clk 0:00:15]}  hxg5 {[%clk 0:00:03]} 58. f4 {[%clk 0:00:16]}  gxf4 {[%clk 0:00:03]} 59. Kg2 {[%clk 0:00:15]}  fxg3 {[%clk 0:00:03]} 60. Kxg3 {[%clk 0:00:15]}  Ke6 {[%clk 0:00:03]} 61. Rg6+ {[%clk 0:00:15]}  Bf6 {[%clk 0:00:03]} 62. Kf3 {[%clk 0:00:16]}  Rxa6 {[%clk 0:00:04]} 63. Rg4 {[%clk 0:00:17]}  Ra3+ {[%clk 0:00:04]} 64. Ke2 {[%clk 0:00:17]}  Be5 {[%clk 0:00:04]} 65. Rc4 {[%clk 0:00:18]}  Kd5 {[%clk 0:00:04]} 66. Rc2 {[%clk 0:00:18]}  Ke4 {[%clk 0:00:04]} 67. Rd2 {[%clk 0:00:19]}  Bc3 {[%clk 0:00:05]} 68. Rc2 {[%clk 0:00:19]}  Rb3 {[%clk 0:00:05]} 69. Ra2 {[%clk 0:00:19]}  Bb4 {[%clk 0:00:05]} 70. Rc2 {[%clk 0:00:19]}  Re3+ {[%clk 0:00:06]} 71. Kf2 {[%clk 0:00:19]}  Bc3 {[%clk 0:00:04]} 72. Re2 {[%clk 0:00:19]}  Bd4 {[%clk 0:00:02]} 73. Rxe3+ {[%clk 0:00:19]}  Bxe3+ {[%clk 0:00:03]} 1/2-1/2

[Event "December 12 Early 2023"]
[Site "https://www.chess.com"]
[Date "2023.12.12"]
[Round "9"]
[White "Lund, Gunnar"]
[Black "Goh, Wei Ming Kevin"]
[Result "0-1"]
[Board "41"]
[TimeControl "180+1"]
[WhiteFideId "1520814"]
[BlackFideId "5800706"]
[WhiteElo "2623"]
[BlackElo "2767"]
[WhiteTeam "NOR"]
[BlackTeam "SGP"]
[WhiteClock "0:00:19"]
[BlackClock "0:00:22"]

1. d4 {[%clk 0:03:00]}  Nf6 {[%clk 0:02:58]} 2. Bf4 {[%clk 0:03:01]}  e6 {[%clk 0:02:55]} 3. e3 {[%clk 0:03:01]}  c5 {[%clk 0:02:53]} 4. c3 {[%clk 0:03:01]}  cxd4 {[%clk 0:02:48]} 5. exd4 {[%clk 0:02:59]}  b6 {[%clk 0:02:46]} 6. Nd2 {[%clk 0:02:58]}  Be7 {[%clk 0:02:46]} 7. Ngf3 {[%clk 0:02:57]}  O-O {[%clk 0:02:46]} 8. Bd3 {[%clk 0:02:57]}  Ba6 {[%clk 0:02:46]} 9. Bxa6 {[%clk 0:02:51]}  Nxa6 {[%clk 0:02:47]} 10. O-O {[%clk 0:02:52]}  d6 {[%clk 0:02:47]} 11. a4 {[%clk 0:02:51]}  Nc7 {[%clk 0:02:46]} 12. Qb3 {[%clk 0:02:48]}  Rb8 {[%clk 0:02:39]} 13. Rfe1 {[%clk 0:02:46]}  a6 {[%clk 0:02:39]} 14. Rad1 {[%clk 0:02:42]}  b5 {[%clk 0:02:38]} 15. axb5 {[%clk 0:02:41]}  axb5 {[%clk 0:02:39]} 16. Bg5 {[%clk 0:02:39]}  Ncd5 {[%clk 0:02:39]} 17. Bxf6 {[%clk 0:02:39]}  Bxf6 {[%clk 0:02:39]} 18. Ra1 {[%clk 0:02:34]}  Qc7 {[%clk 0:02:35]} 19. Ne4 {[%clk 0:02:29]}  Be7 {[%clk 0:02:35]} 20. Ng3 {[%clk 0:02:30]}  Rfc8 {[%clk 0:02:32]} 21. Ra6 {[%clk 0:02:26]}  b4 {[%clk 0:02:31]} 22. cxb4 {[%clk 0:02:15]}  Rxb4 {[%clk 0:02:31]} 23. Qa2 {[%clk 0:02:15]}  Rcb8 {[%clk 0:02:25]} 24. Ra7 {[%clk 0:01:58]}  Qb6 {[%clk 0:02:17]} 25. Re2 {[%clk 0:01:38]}  Rxb2 {[%clk 0:02:08]} 26. Rxb2 {[%clk 0:01:37]}  Qxb2 {[%clk 0:02:09]} 27. Qxb2 {[%clk 0:01:36]}  Rxb2 {[%clk 0:02:09]} 28. Ra8+ {[%clk 0:01:36]}  Bf8 {[%clk 0:02:08]} 29. h3 {[%clk 0:01:32]}  Rb7 {[%clk 0:01:57]} 30. Ne4 {[%clk 0:01:30]}  Rd7 {[%clk 0:01:56]} 31. Ra5 {[%clk 0:01:22]}  h6 {[%clk 0:01:49]} 32. Nfd2 {[%clk 0:01:20]}  f5 {[%clk 0:01:48]} 33. Ng3 {[%clk 0:01:15]}  Ne7 {[%clk 0:01:42]} 34. Nc4 {[%clk 0:01:09]}  Nc6 {[%clk 0:01:42]} 35. Ra8 {[%clk 0:01:00]}  Nxd4 {[%clk 0:01:40]} 36. Nh5 {[%clk 0:01:00]}  Kf7 {[%clk 0:01:38]} 37. Nf4 {[%clk 0:01:00]}  Be7 {[%clk 0:01:37]} 38. g4 {[%clk 0:00:58]}  Rc7 {[%clk 0:01:35]} 39. Ne3 {[%clk 0:00:58]}  g5 {[%clk 0:01:28]} 40. Nd3 {[%clk 0:00:48]}  f4 {[%clk 0:01:27]} 41. Nf1 {[%clk 0:00:47]}  Bf6 {[%clk 0:01:14]} 42. Nd2 {[%clk 0:00:44]}  d5 {[%clk 0:01:14]} 43. Nb4 {[%clk 0:00:41]}  Rb7 {[%clk 0:01:05]} 44. Na6 {[%clk 0:00:39]}  e5 {[%clk 0:01:02]} 45. Nc5 {[%clk 0:00:38]}  Rc7 {[%clk 0:00:57]} 46. Ra5 {[%clk 0:00:36]}  e4 {[%clk 0:00:51]} 47. Ndxe4 {[%clk 0:00:34]}  dxe4 {[%clk 0:00:50]} 48. Nxe4 {[%clk 0:00:35]}  Ne6 {[%clk 0:00:40]} 49. Nd6+ {[%clk 0:00:34]}  Kg6 {[%clk 0:00:37]} 50. Ra6 {[%clk 0:00:35]}  Nd4 {[%clk 0:00:33]} 51. Ne4 {[%clk 0:00:32]}  Rc6 {[%clk 0:00:33]} 52. Ra8 {[%clk 0:00:32]}  Re6 {[%clk 0:00:32]} 53. Nc5 {[%clk 0:00:31]}  Re1+ {[%clk 0:00:31]} 54. Kh2 {[%clk 0:00:31]}  f3 {[%clk 0:00:29]} 55. Ra6 {[%clk 0:00:30]}  Kf7 {[%clk 0:00:26]} 56. Ra7+ {[%clk 0:00:29]}  Ke8 {[%clk 0:00:25]} 57. Nd3 {[%clk 0:00:24]}  Rd1 {[%clk 0:00:25]} 58. Ra3 {[%clk 0:00:24]}  Be7 {[%clk 0:00:22]} 59. Rc3 {[%clk 0:00:19]}  Bd6+ {[%clk 0:00:22]} 0-1

[Event "December 12 Early 2023"]
[Site "https://www.chess.com"]
[Date "2023.12.12"]
[Round "9"]
[White "Gabrielian, Artur"]
[Black "Principe, Gerson"]
[Result "0-1"]
[Board "42"]
[TimeControl "180+1"]
[WhiteFideId "4131002"]
[BlackFideId "3804550"]
[WhiteElo "2756"]
[BlackElo "2622"]
[WhiteTeam "RUS"]
[BlackTeam "PER"]
[WhiteClock "0:00:51"]
[BlackClock "0:01:00"]

1. e4 {[%clk 0:03:00]}  c6 {[%clk 0:02:59]} 2. d4 {[%clk 0:03:00]}  d5 {[%clk 0:03:00]} 3. e5 {[%clk 0:03:01]}  Bf5 {[%clk 0:03:00]} 4. h4 {[%clk 0:03:00]}  h5 {[%clk 0:02:54]} 5. Bd3 {[%clk 0:03:00]}  Bxd3 {[%clk 0:02:53]} 6. Qxd3 {[%clk 0:03:01]}  e6 {[%clk 0:02:54]} 7. Nf3 {[%clk 0:03:01]}  Qa5+ {[%clk 0:02:51]} 8. Nbd2 {[%clk 0:03:01]}  Qa6 {[%clk 0:02:51]} 9. c4 {[%clk 0:03:00]}  Nd7 {[%clk 0:02:52]} 10. O-O {[%clk 0:02:59]}  Ne7 {[%clk 0:02:47]} 11. a4 {[%clk 0:02:59]}  Nf5 {[%clk 0:02:44]} 12. b3 {[%clk 0:02:58]}  Be7 {[%clk 0:02:43]} 13. Ba3 {[%clk 0:02:58]}  Bxa3 {[%clk 0:02:37]} 14. Rxa3 {[%clk 0:02:58]}  O-O {[%clk 0:02:38]} 15. Rd1 {[%clk 0:02:56]}  Rac8 {[%clk 0:02:35]} 16. Qb1 {[%clk 0:02:50]}  b6 {[%clk 0:02:25]} 17. Ng5 {[%clk 0:02:31]}  g6 {[%clk 0:02:20]} 18. Ngf3 {[%clk 0:02:17]}  Rfd8 {[%clk 0:02:11]} 19. a5 {[%clk 0:01:58]}  c5 {[%clk 0:01:58]} 20. cxd5 {[%clk 0:01:58]}  exd5 {[%clk 0:01:58]} 21. Nf1 {[%clk 0:01:52]}  cxd4 {[%clk 0:01:45]} 22. b4 {[%clk 0:01:44]}  Rc3 {[%clk 0:01:28]} 23. Ra2 {[%clk 0:01:40]}  Re8 {[%clk 0:01:19]} 24. Nxd4 {[%clk 0:01:21]}  Nxd4 {[%clk 0:01:14]} 25. Rxd4 {[%clk 0:01:21]}  Rxe5 {[%clk 0:01:10]} 26. b5 {[%clk 0:01:18]}  Qb7 {[%clk 0:01:07]} 27. Ne3 {[%clk 0:01:18]}  Nf6 {[%clk 0:01:04]} 28. a6 {[%clk 0:01:04]}  Qc7 {[%clk 0:01:04]} 29. Rc2 {[%clk 0:00:51]}  Rexe3 {[%clk 0:01:00]} 0-1